bitfinex/quotes_SOLUSD_20240930
["timestamp","ask_amount","ask_price","bid_price","bid_amount"]
[1727694640703,6.4644,154.7,154.66,0.49092711]
[1727694641521,6.4644,154.7,154.66,6.95662711]
[1727694641923,7.2938212,154.71,154.67,6.4653]
[1727694642227,7.2938212,154.71,154.68,0.49069637]
[1727694643825,7.2938212,154.71,154.67,6.4653]
[1727694644330,7.2938212,154.71,154.68,0.49070549]
[1727694647126,0.8300212,154.71,154.68,6.95560549]
[1727694648435,7.2937212,154.71,154.68,0.49070549]
[1727694649425,7.2937212,154.71,154.67,22.6284]
[1727694650328,6.4642,154.7,154.67,16.1632]
[1727694650510,7.2938212,154.71,154.67,22.6285]
[1727694654642,7.2938212,154.71,154.67,16.1632]
[1727694654844,6.4644,154.7,154.66,6.4656]
[1727694655226,0.8300212,154.71,154.64,16.1658]
[1727694655429,6.4657,154.67,154.62,6.4671]
[1727694655625,6.4657,154.67,154.61,16.169]
[1727694655822,6.4657,154.67,154.63,6.467]
[1727694656741,6.4658,154.66,154.62,6.4673]
[1727694658619,6.4665,154.65,154.61,22.6368]
[1727694659145,6.4665,154.65,154.62,0.4921178]
[1727694659723,6.4659,154.66,154.62,0.4921178]
[1727694659934,6.5395,154.69,154.62,0.4921178]
[1727694659935,6.4654,154.67,154.62,0.4921178]
[1727694660140,6.4654,154.67,154.63,6.467]
[1727694660330,6.4654,154.67,154.64,0.49194155]
[1727694661038,6.4658,154.66,154.64,0.49194155]
[1727694661224,6.4658,154.66,154.63,0.49195003]
[1727694661426,6.4658,154.66,154.62,6.4673]
[1727694661724,6.5395,154.69,154.61,16.169]
[1727694661725,6.4668,154.64,154.61,16.169]
[1727694662239,6.4668,154.64,154.6,6.4681]
[1727694663446,6.4663,154.65,154.6,6.4681]
[1727694664839,6.4663,154.65,154.61,6.4678]
[1727694666154,0.25098,154.67,154.6,16.1703]
[1727694666446,6.4668,154.64,154.6,22.6384]
[1727694668149,16.1626,154.68,154.61,0.49242415]
[1727694669054,6.4646,154.69,154.65,6.4661]
[1727694669247,16.0155212,154.71,154.64,16.1661]
[1727694669469,1.61631885,154.7,154.61,16.1691]
[1727694669755,6.4665,154.65,154.61,22.6369]
[1727694670259,24.027864,154.69,154.61,16.1691]
[1727694670560,6.4662,154.65,154.61,22.6369]
[1727694672241,6.4662,154.65,154.61,16.1691]
[1727694672961,16.1606,154.7,154.58,22.6344]
[1727694672962,0.8300212,154.71,154.69,6.4644]
[1727694673156,0.8300212,154.71,154.7,0.49024139]
[1727694673339,0.8300212,154.71,154.69,16.1613]
[1727694673548,0.8300212,154.71,154.69,23.1160189]
[1727694673959,0.8300212,154.71,154.7,6.4641]
[1727694674966,0.8300212,154.71,154.7,6.95451268]
[1727694676034,0.8300212,154.71,154.7,50.73139668]
[1727694677050,0.8300212,154.71,154.7,50.240984]
[1727694678356,0.8300212,154.71,154.7,6.4641]
[1727694678553,0.8300212,154.71,154.69,16.1613]
[1727694678768,0.8300212,154.71,154.69,22.6254]
[1727694680243,0.8300212,154.71,154.7,0.49038992]
[1727694680438,0.8300212,154.71,154.69,22.6254]
[1727694680858,0.8300212,154.71,154.7,0.49039092]
[1727694681561,0.8300212,154.71,154.7,6.4641]
[1727694682757,0.8300212,154.71,154.69,22.6257]
[1727694683158,0.8300212,154.71,154.7,0.49024291]
[1727694683370,0.8300212,154.71,154.69,22.6257]
[1727694683937,0.8300212,154.71,154.69,16.1613]
[1727694684163,0.8300212,154.71,154.7,6.95412693]
[1727694684964,0.8300212,154.71,154.7,6.4641]
[1727694685374,0.8300212,154.71,154.7,6.95412275]
[1727694686369,0.8300212,154.71,154.7,6.4641]
[1727694690348,0.8300212,154.71,154.7,6.95393504]
[1727694691158,0.8300212,154.71,154.7,30.73081904]
[1727694691365,0.8300212,154.71,154.7,50.73081904]
[1727694693458,0.8300212,154.71,154.7,50.98179904]
[1727694695171,0.8300212,154.71,154.7,80.98179904]
[1727694696269,0.8300212,154.71,154.7,50.98179904]
[1727694698150,0.8300212,154.71,154.7,50.491964]
[1727694698358,0.8300212,154.71,154.7,26.4641]
[1727694699577,0.8300212,154.71,154.7,50.491964]
[1727694701067,22.9733,154.83,154.78,6.4606]
[1727694701271,22.9733,154.83,154.79,0.48778078]
[1727694701583,22.9733,154.83,154.79,6.94798078]
[1727694702286,16.5145,154.83,154.8,0.48778074]
[1727694702465,6.4591,154.82,154.78,20.0]
[1727694702879,6.4591,154.82,154.77,22.6134]
[1727694703073,16.5145,154.83,154.78,0.48797303]
[1727694703372,6.4596,154.81,154.78,0.48797303]
[1727694703758,6.4602,154.8,154.74,36.1555]
[1727694703958,6.4602,154.8,154.76,20.0]
[1727694704288,6.4602,154.8,154.76,26.4615]
[1727694704755,6.4605,154.79,154.74,16.1555]
[1727694704960,6.4608,154.78,154.74,22.6179]
[1727694705161,6.4612,154.77,154.74,16.1555]
[1727694705875,15.6422,154.77,154.71,16.1587]
[1727694706183,6.462,154.75,154.71,22.622]
[1727694706364,15.6422,154.77,154.71,22.622]
[1727694706573,6.4617,154.76,154.71,22.622]
[1727694706769,6.4617,154.76,154.71,16.1587]
[1727694707073,22.1035,154.77,154.73,6.4626]
[1727694707277,22.1035,154.77,154.74,0.48931667]
[1727694707475,15.6422,154.77,154.74,6.95141667]
[1727694709571,15.6422,154.77,154.74,0.48931667]
[1727694709768,16.3028,154.85,154.77,20.0]
[1727694709976,16.3028,154.85,154.79,20.0]
[1727694710173,22.7607,154.85,154.81,6.4594]
[1727694710380,22.7607,154.85,154.82,0.4872025]
[1727694711171,16.3028,154.85,154.82,0.4872025]
[1727694714278,7.2874212,154.86,154.82,0.4872025]
[1727694714674,0.8300212,154.86,154.84,6.4579]
[1727694714989,0.8300212,154.86,154.85,6.94402065]
[1727694715389,0.8300212,154.86,154.85,30.72090465]
[1727694716697,0.8300212,154.86,154.85,6.94402065]
[1727694717277,0.8300212,154.86,154.85,30.72090465]
[1727694720973,0.8300212,154.86,154.85,50.72058156]
[1727694721176,0.8300212,154.86,154.85,50.234684]
[1727694721486,0.8300212,154.86,154.85,43.776884]
[1727694723689,0.8300212,154.86,154.85,50.234684]
[1727694725578,0.8300212,154.86,154.85,50.72062384]
[1727694726598,0.8300212,154.86,154.85,50.84611384]
[1727694727386,0.8300212,154.86,154.85,50.97160384]
[1727694727780,0.8300212,154.86,154.85,67.38765048]
[1727694728483,0.8300212,154.86,154.85,66.90171064]
[1727694728683,0.8300212,154.86,154.85,67.38631782]
[1727694730805,0.8300212,154.86,154.85,50.97027118]
[1727694731000,0.8300212,154.86,154.85,50.485664]
[1727694732307,0.8300212,154.86,154.85,66.90171064]
[1727694733610,0.8300212,154.86,154.85,60.97852686]
[1727694734579,0.8300212,154.86,154.85,61.46343821]
[1727694735384,6.7130015,154.96,154.85,61.46343821]
[1727694735385,0.2597015,154.96,154.93,6.4544]
[1727694735587,0.2597015,154.96,154.94,0.48412258]
[1727694736508,0.2597015,154.96,154.95,0.48420741]
[1727694737696,0.2597015,154.96,154.92,26.4548]
[1727694738214,0.2597015,154.96,154.93,0.484214]
[1727694739481,0.2597015,154.96,154.91,23.776884]
[1727694739683,6.454,154.95,154.9,43.776884]
[1727694740103,6.454,154.95,154.9,50.232584]
[1727694740521,1.87309425,154.96,154.9,20.0]
[1727694740696,6.4549,154.92,154.89,20.0]
[1727694741117,0.2597015,154.96,154.86,20.0]
[1727694741433,22.6959,154.91,154.86,6.4574]
[1727694741637,22.6959,154.91,154.85,16.1443]
[1727694741932,6.4558,154.9,154.85,22.602]
[1727694742535,16.2405,154.91,154.87,6.4569]
[1727694742839,16.2405,154.91,154.88,0.48555108]
[1727694743633,16.2405,154.91,154.88,6.94205108]
[1727694746129,16.2405,154.91,154.88,23.776884]
[1727694747013,22.6958,154.91,154.88,20.0]
[1727694749040,6.456,154.9,154.85,6.4577]
[1727694749448,6.4562,154.89,154.85,20.0]
[1727694749644,6.4566,154.88,154.85,20.0]
[1727694750256,6.4567,154.88,154.85,20.0]
[1727694750920,6.4562,154.89,154.86,0.48620954]
[1727694751239,6.4562,154.89,154.86,23.776884]
[1727694751447,6.4562,154.89,154.87,0.48587558]
[1727694751829,6.4562,154.89,154.86,23.776884]
[1727694752444,6.4548,154.93,154.88,30.233084]
[1727694753024,15.6542,154.95,154.88,30.233084]
[1727694753237,6.455,154.92,154.88,30.233084]
[1727694753431,15.6542,154.95,154.88,30.233084]
[1727694753623,6.4546,154.93,154.88,30.233084]
[1727694754036,6.4549,154.92,154.88,30.233084]
[1727694754445,6.4549,154.92,154.88,23.776884]
[1727694755926,6.4546,154.93,154.89,0.48524141]
[1727694756247,6.4546,154.93,154.89,6.94134141]
[1727694758427,6.4546,154.93,154.89,0.48524141]
[1727694760353,6.4551,154.92,154.89,0.48524141]
[1727694760542,6.4551,154.92,154.88,30.233084]
[1727694760843,6.4551,154.92,154.89,0.48512863]
[1727694764439,6.4548,154.93,154.89,26.94122863]
[1727694765422,6.4549,154.92,154.89,20.48512863]
[1727694766750,6.4546,154.93,154.89,26.94122863]
[1727694771569,6.455,154.92,154.89,20.0]
[1727694773859,15.6542,154.95,154.88,23.776884]
[1727694774046,15.6542,154.95,154.89,5.15996324]
[1727694774047,17.26793608,154.95,154.89,5.15996324]
[1727694774248,6.4551,154.92,154.88,26.4566]
[1727694774449,6.4551,154.92,154.89,5.16019412]
[1727694774670,6.4551,154.92,154.88,26.4566]
[1727694774965,6.4551,154.92,154.89,5.16019682]
[1727694775171,6.4551,154.92,154.88,26.4566]
[1727694775866,6.4551,154.92,154.89,5.16026218]
[1727694776073,6.4551,154.92,154.88,26.4566]
[1727694776265,6.4551,154.92,154.89,5.16013446]
[1727694776468,6.4551,154.92,154.88,26.4566]
[1727694776671,6.4551,154.92,154.89,5.1601128]
[1727694776972,6.4551,154.92,154.88,26.4566]
[1727694777175,6.4551,154.92,154.89,5.16013426]
[1727694777349,6.4551,154.92,154.88,26.4566]
[1727694777547,6.4551,154.92,154.89,5.16011766]
[1727694777768,6.4551,154.92,154.88,26.4566]
[1727694778072,17.26793608,154.95,154.89,5.16011766]
[1727694778282,17.26793608,154.95,154.84,8.07035371]
[1727694778283,6.4574,154.86,154.84,8.07035371]
[1727694778489,6.4574,154.86,154.82,6.4587]
[1727694778692,6.4574,154.86,154.85,5.16096444]
[1727694778888,6.4574,154.86,154.85,5.16024857]
[1727694779285,6.4574,154.86,154.82,6.4587]
[1727694779594,6.4574,154.86,154.83,13.41294555]
[1727694779893,6.4574,154.86,154.84,5.15882521]
[1727694780086,6.4574,154.86,154.82,6.4587]
[1727694780575,6.4574,154.86,154.83,20.0]
[1727694780992,16.2597,154.9,154.84,0.48692003]
[1727694782075,22.7156,154.9,154.86,6.4572]
[1727694782404,16.2597,154.9,154.84,16.1449]
[1727694782571,6.4566,154.88,154.84,16.1449]
[1727694782770,6.4571,154.87,154.84,16.1449]
[1727694783387,6.4574,154.86,154.82,26.4588]
[1727694783582,6.4578,154.85,154.83,8.24861911]
[1727694783785,6.4578,154.85,154.82,20.0]
[1727694784007,6.4574,154.86,154.82,26.459]
[1727694784502,6.4581,154.85,154.82,20.0]
[1727694784998,0.12549,154.87,154.79,6.46]
[1727694785205,0.12549,154.87,154.8,28.2485828]
[1727694785206,6.459,154.83,154.8,28.2485828]
[1727694785377,1.74023933,154.87,154.81,8.2485828]
[1727694785571,6.4591,154.82,154.79,20.0]
[1727694785909,6.4588,154.83,154.8,8.24760321]
[1727694786120,6.4588,154.83,154.81,8.24760321]
[1727694786420,6.4588,154.83,154.8,0.48783037]
[1727694786600,6.4588,154.83,154.81,8.24621879]
[1727694786802,6.4588,154.83,154.8,0.48783037]
[1727694788113,6.4588,154.83,154.79,26.4602]
[1727694788490,6.4588,154.83,154.8,8.7310624]
[1727694788686,6.4588,154.83,154.79,26.4602]
[1727694788912,6.4588,154.83,154.8,8.242888]
[1727694789210,6.4588,154.83,154.79,26.4602]
[1727694789413,6.4588,154.83,154.8,8.24135851]
[1727694789592,6.4588,154.83,154.79,26.4602]
[1727694789792,6.4588,154.83,154.8,8.24136143]
[1727694790010,6.4588,154.83,154.79,26.94805775]
[1727694790314,6.4588,154.83,154.8,8.24028215]
[1727694790490,6.4588,154.83,154.79,26.4602]
[1727694790691,6.4588,154.83,154.8,8.23987781]
[1727694790889,6.4588,154.83,154.79,26.4602]
[1727694791216,6.4588,154.83,154.8,8.727738]
[1727694791417,6.4585,154.84,154.8,0.48785875]
[1727694791795,6.4585,154.84,154.79,26.4602]
[1727694792009,6.459,154.83,154.79,26.4602]
[1727694794014,6.459,154.83,154.76,14.30396026]
[1727694794015,6.4602,154.8,154.77,20.0]
[1727694794227,6.46,154.8,154.76,6.4613]
[1727694794693,6.4596,154.81,154.76,6.4613]
[1727694794894,1.61516893,154.8,154.76,6.4613]
[1727694795501,1.61516893,154.8,154.77,6.461]
[1727694796820,6.4592,154.82,154.77,6.461]
[1727694796995,1.61516901,154.81,154.77,6.461]
[1727694797521,6.4592,154.82,154.77,6.461]
[1727694797814,0.12549,154.83,154.78,6.4604]
[1727694797815,6.58419,154.83,154.78,6.4604]
[1727694798019,6.58419,154.83,154.79,6.4602]
[1727694798519,6.58419,154.83,154.78,6.4606]
[1727694801826,6.4584,154.84,154.8,6.4599]
[1727694802022,0.12549,154.83,154.79,6.4602]
[1727694802410,6.58419,154.83,154.79,6.4602]
[1727694802622,16.0285,154.85,154.82,6.4589]
[1727694802933,16.0285,154.85,154.82,6.459]
[1727694803933,15.2924,154.89,154.86,6.4574]
[1727694804232,15.2924,154.93,154.87,6.4569]
[1727694805209,6.4554,154.91,154.86,6.4574]
[1727694805414,0.12549,154.9,154.86,6.4574]
[1727694807825,6.4554,154.91,154.86,6.4574]
[1727694808407,6.70588,154.92,154.87,6.94295083]
[1727694808613,6.58039,154.92,154.87,6.94295083]
[1727694809633,6.58039,154.92,154.87,6.4567]
[1727694810919,0.12549,154.92,154.88,6.4564]
[1727694811116,6.58049,154.92,154.87,6.4569]
[1727694811416,6.4554,154.91,154.87,6.4569]
[1727694821444,15.7353,154.97,154.88,16.1411]
[1727694821745,6.4541,154.94,154.9,6.4557]
[1727694824154,1.6137898,154.93,154.88,16.1411]
[1727694824342,1.87354263,154.96,154.88,16.1411]
[1727694824545,6.4554,154.91,154.87,6.4567]
[1727694825859,6.4554,154.91,154.86,15.0042]
[1727694826153,6.4554,154.91,154.86,21.4615]
[1727694827540,6.455,154.92,154.87,6.4568]
[1727694827940,6.455,154.92,154.88,6.94240842]
[1727694828556,6.4546,154.93,154.88,6.94240842]
[1727694828733,6.4546,154.93,154.88,0.48590842]
[1727694828932,6.4546,154.93,154.89,6.4561]
[1727694830428,6.4546,154.93,154.88,0.48590842]
[1727694830629,6.4546,154.93,154.88,6.94240842]
[1727694831927,8.06890296,154.92,154.88,6.4565]
[1727694832133,6.455,154.92,154.88,6.4565]
[1727694833356,6.4561,154.89,154.86,15.0042]
[1727694833657,6.4561,154.9,154.86,6.4574]
[1727694834865,6.4547,154.93,154.89,6.4561]
[1727694836547,6.4543,154.94,154.89,6.4561]
[1727694836947,6.4542,154.94,154.9,6.4557]
[1727694837267,6.4542,154.94,154.89,6.456]
[1727694837956,6.4542,154.94,154.9,6.4557]
[1727694838337,6.4542,154.94,154.89,6.456]
[1727694839444,6.4546,154.93,154.89,6.456]
[1727694840160,6.4549,154.92,154.88,22.5974]
[1727694841541,8.06925875,154.91,154.88,16.141]
[1727694842058,6.4554,154.91,154.88,16.141]
[1727694842562,6.4558,154.9,154.86,26.4573]
[1727694843163,0.12549,154.93,154.86,20.0]
[1727694843366,6.4554,154.91,154.87,6.4569]
[1727694844064,6.4557,154.9,154.86,26.4571]
[1727694848083,0.2597015,154.96,154.89,16.1398]
[1727694848246,0.2597015,154.96,154.9,0.48528186]
[1727694848565,6.4538,154.95,154.91,6.455]
[1727694850765,6.4538,154.95,154.9,0.48528186]
[1727694850766,6.4538,154.95,154.9,6.94088186]
[1727694851851,6.4541,154.94,154.9,6.94088186]
[1727694852974,6.4541,154.94,154.9,6.4556]
[1727694853182,6.4541,154.94,154.9,6.9407931]
[1727694853671,6.7132015,154.96,154.92,6.4548]
[1727694853871,6.7132015,154.96,154.92,6.93968026]
[1727694854570,6.7132015,154.96,154.92,0.48488026]
[1727694854755,6.4538,154.95,154.92,0.48488026]
[1727694854960,6.4538,154.95,154.91,22.5932]
[1727694855179,6.4538,154.95,154.92,4.98150003]
[1727694855378,6.4538,154.95,154.92,0.48488734]
[1727694863598,0.2597015,154.96,154.92,0.48488734]
[1727694863796,6.4542,154.94,154.92,0.48488734]
[1727694864009,6.4537,154.95,154.92,0.48488734]
[1727694865374,6.7131015,154.96,154.92,6.93968734]
[1727694866095,0.2597015,154.96,154.93,6.4544]
[1727694869189,0.2597015,154.96,154.93,6.93906838]
[1727694869601,0.2597015,154.96,154.93,6.4545]
[1727694870000,0.2597015,154.96,154.93,6.93906924]
[1727694870795,0.2597015,154.96,154.93,6.4545]
[1727694870973,0.2597015,154.96,154.92,16.137]
[1727694870974,6.7130015,154.96,154.92,22.5918]
[1727694871506,0.2597015,154.96,154.92,0.48457196]
[1727694871887,0.2597015,154.96,154.92,0.4848593]
[1727694872094,0.2597015,154.96,154.91,20.0]
[1727694872095,6.4537,154.95,154.91,26.4552]
[1727694872905,0.2597015,154.96,154.91,26.94006645]
[1727694873088,6.7131015,154.96,154.91,26.94006645]
[1727694874278,6.7131015,154.96,154.91,20.48486645]
[1727694874481,6.7131015,154.96,154.92,6.4546]
[1727694874816,6.7131015,154.96,154.93,0.48468867]
[1727694875182,0.2597015,154.96,154.93,0.48468867]
[1727694875404,0.2597015,154.96,154.93,6.93918867]
[1727694876304,0.2597015,154.96,154.93,6.4545]
[1727694876502,0.2597015,154.96,154.94,23.776884]
[1727694876702,0.2597015,154.96,154.94,30.230784]
[1727694877481,0.2597015,154.96,154.94,6.4539]
[1727694879113,0.2597015,154.96,154.93,16.1359]
[1727694879289,0.2597015,154.96,154.93,22.5903]
[1727694879692,6.7131015,154.96,154.92,6.4548]
[1727694879907,6.4537,154.95,154.91,26.4552]
[1727694880206,6.4537,154.95,154.92,4.97555111]
[1727694880393,6.4537,154.95,154.91,26.4552]
[1727694880601,6.4537,154.95,154.92,4.97584529]
[1727694880814,6.4537,154.95,154.91,26.4552]
[1727694881110,6.4537,154.95,154.92,4.97586696]
[1727694881315,6.4537,154.95,154.91,26.4552]
[1727694881487,6.4537,154.95,154.92,4.97598543]
[1727694881692,6.4537,154.95,154.91,26.4552]
[1727694881887,6.4537,154.95,154.92,4.97596374]
[1727694882185,6.4537,154.95,154.91,26.4552]
[1727694882386,6.4537,154.95,154.92,4.97611579]
[1727694882592,6.4537,154.95,154.91,26.4552]
[1727694882793,6.4537,154.95,154.92,4.97611668]
[1727694882993,6.4537,154.95,154.91,26.94016376]
[1727694883205,6.4537,154.95,154.92,4.97611576]
[1727694883411,6.4537,154.95,154.91,26.4552]
[1727694883611,6.4537,154.95,154.92,4.9762739]
[1727694883805,6.7132015,154.96,154.92,6.93980054]
[1727694884515,6.4535,154.96,154.92,6.93980054]
[1727694884732,6.7286753,154.96,154.92,6.93980054]
[1727694886113,6.7286753,154.96,154.92,6.4548]
[1727694886315,6.4537,154.95,154.91,26.4552]
[1727694887298,6.4537,154.95,154.91,6.4552]
[1727694887502,0.2751753,154.96,154.94,6.4538]
[1727694887801,6.7284753,154.96,154.92,27.56861935]
[1727694888115,6.7284753,154.96,154.92,22.5916]
[1727694888490,6.7284753,154.96,154.92,16.1368]
[1727694888898,6.7284753,154.96,154.92,16.62166391]
[1727694889305,6.7284753,154.96,154.92,22.5917]
[1727694890220,6.7284753,154.96,154.93,4.97800122]
[1727694890401,6.7284753,154.96,154.92,22.5917]
[1727694890606,6.7284753,154.96,154.93,4.97904863]
[1727694890923,6.7284753,154.96,154.92,22.5917]
[1727694891553,6.7284753,154.96,154.93,4.97906852]
[1727694891744,6.7284753,154.96,154.92,22.5917]
[1727694891928,6.7284753,154.96,154.93,4.98026465]
[1727694892244,6.7284753,154.96,154.92,22.5917]
[1727694892446,6.7284753,154.96,154.93,4.98034486]
[1727694895451,6.4536,154.95,154.94,4.98435233]
[1727694896558,0.2751753,154.96,154.94,11.43815233]
[1727694896850,0.2751753,154.96,154.94,6.4538]
[1727694897424,0.2751753,154.96,154.93,6.93915058]
[1727694897820,0.2751753,154.96,154.94,4.9870063]
[1727694898051,0.2751753,154.96,154.93,6.93915058]
[1727694898354,0.2751753,154.96,154.94,12.96797003]
[1727694898538,0.2751753,154.96,154.95,4.98698375]
[1727694898940,6.7283753,154.96,154.95,4.98698375]
[1727694901833,0.2751753,154.96,154.95,4.98698375]
[1727694902154,0.2751753,154.96,154.95,11.44058375]
[1727694902325,0.2751753,154.96,154.95,19.90594733]
[1727694902739,0.2751753,154.96,154.95,0.48407575]
[1727694903029,0.2751753,154.96,154.94,22.5889]
[1727694903358,0.2751753,154.96,154.95,4.98830054]
[1727694903727,0.2751753,154.96,154.94,22.5889]
[1727694903927,0.2751753,154.96,154.95,4.98742989]
[1727694905262,6.7283753,154.96,154.95,4.98742989]
[1727694906063,6.7283753,154.96,154.91,22.5927]
[1727694906262,6.7283753,154.96,154.92,4.98751345]
[1727694906448,6.7283753,154.96,154.93,4.98751345]
[1727694906648,6.7283753,154.96,154.94,4.98751345]
[1727694906962,6.7283753,154.96,154.92,0.48467254]
[1727694907162,6.7283753,154.96,154.92,6.93947254]
[1727694907466,6.7283753,154.96,154.93,4.98756475]
[1727694907845,6.7283753,154.96,154.94,4.98756475]
[1727694908040,6.7283753,154.96,154.92,6.93947254]
[1727694908350,0.2751753,154.96,154.93,11.44219807]
[1727694908547,0.2751753,154.96,154.94,4.98769807]
[1727694908853,0.2751753,154.96,154.95,4.98769807]
[1727694910364,0.2751753,154.96,154.94,6.4538]
[1727694910570,0.2751753,154.96,154.95,4.98733233]
[1727694910869,6.7283753,154.96,154.95,4.98733233]
[1727694911451,0.2751753,154.96,154.95,4.98733233]
[1727694914069,6.7283753,154.96,154.95,4.98733233]
[1727694914265,0.2751753,154.96,154.91,20.0]
[1727694914451,6.4541,154.94,154.92,4.98744715]
[1727694914649,6.4541,154.94,154.93,4.98744715]
[1727694914971,6.7292753,154.94,154.93,4.98744715]
[1727694915458,6.58009,154.93,154.88,6.4562]
[1727694915642,6.58009,154.93,154.89,4.81976835]
[1727694915848,6.58009,154.93,154.9,4.81976835]
[1727694916044,6.4553,154.92,154.91,4.81976835]
[1727694916476,6.4557,154.91,154.87,16.1422]
[1727694916857,6.4557,154.91,154.88,4.81944713]
[1727694917173,6.4557,154.91,154.89,4.81944713]
[1727694917374,6.4557,154.91,154.87,16.1422]
[1727694917575,0.12549,154.93,154.88,4.81808225]
[1727694917758,0.12549,154.93,154.87,23.08524146]
[1727694917759,6.4549,154.92,154.89,4.81808225]
[1727694917956,6.4549,154.92,154.9,4.81808225]
[1727694918156,6.4549,154.92,154.87,23.08524146]
[1727694918457,6.4549,154.92,154.88,4.81683187]
[1727694918666,6.4554,154.91,154.89,4.81683187]
[1727694918849,6.4554,154.91,154.87,23.08524146]
[1727694919060,6.4554,154.91,154.88,4.81684818]
[1727694919260,6.4554,154.91,154.89,4.81684818]
[1727694919568,6.4554,154.91,154.87,22.5991]
[1727694919765,6.4546,154.93,154.88,5.30186931]
[1727694919944,6.4546,154.93,154.89,4.81588252]
[1727694920348,6.4546,154.93,154.9,4.81588252]
[1727694920546,0.2751753,154.94,154.88,20.48598858]
[1727694920756,6.7294753,154.94,154.9,6.4557]
[1727694921758,0.2751753,154.94,154.91,6.94031049]
[1727694921960,0.2751753,154.94,154.93,6.4545]
[1727694922263,0.2751753,154.94,154.92,6.93944133]
[1727694926491,0.2751753,154.94,154.91,22.5928]
[1727694926976,6.7294753,154.94,154.9,6.4556]
[1727694927175,0.2751753,154.94,154.91,4.81421658]
[1727694927396,0.2751753,154.94,154.89,20.48531564]
[1727694927596,0.2751753,154.94,154.9,4.81420426]
[1727694927773,0.2751753,154.94,154.91,4.81420426]
[1727694927972,0.2751753,154.94,154.89,20.48531564]
[1727694928168,6.7292753,154.94,154.9,11.26990982]
[1727694928374,6.7292753,154.94,154.91,4.81420982]
[1727694928568,6.7292753,154.94,154.9,6.4557]
[1727694928768,6.4545,154.93,154.91,4.81405302]
[1727694929072,6.4549,154.92,154.88,22.5972]
[1727694929374,6.4554,154.91,154.89,4.81406689]
[1727694929574,6.4554,154.91,154.9,4.81394016]
[1727694929777,0.12549,154.91,154.85,16.1439]
[1727694929980,6.4564,154.89,154.86,4.81414162]
[1727694930287,6.4564,154.89,154.87,4.81414162]
[1727694930489,6.4564,154.89,154.88,4.81414162]
[1727694930694,6.58189,154.89,154.88,4.81414162]
[1727694930988,6.4566,154.88,154.84,6.4581]
[1727694931186,6.4566,154.88,154.85,4.81381704]
[1727694931492,6.4562,154.89,154.86,4.81381704]
[1727694931787,6.4562,154.89,154.84,6.4581]
[1727694931972,6.4562,154.89,154.85,4.81209008]
[1727694932177,6.4562,154.89,154.86,4.81209008]
[1727694932392,6.4562,154.89,154.84,6.4581]
[1727694932688,6.4562,154.89,154.85,4.8106681]
[1727694932887,6.4562,154.89,154.86,4.8106681]
[1727694933072,6.4566,154.88,154.84,6.4581]
[1727694933273,6.4566,154.88,154.85,4.80965118]
[1727694933473,6.4566,154.88,154.86,4.80965118]
[1727694933775,6.4566,154.88,154.84,6.4581]
[1727694933975,6.4566,154.88,154.85,4.80947593]
[1727694934177,6.4566,154.88,154.86,4.80947593]
[1727694934384,6.4577,154.86,154.83,20.0]
[1727694934584,6.4573,154.87,154.84,4.80832124]
[1727694934786,6.4574,154.86,154.83,20.0]
[1727694935095,6.4574,154.86,154.84,4.80864802]
[1727694935285,6.4574,154.86,154.83,20.0]
[1727694935475,6.4574,154.86,154.84,4.80705146]
[1727694935669,6.4574,154.86,154.83,20.0]
[1727694935875,6.4574,154.86,154.84,4.80716061]
[1727694936075,6.4574,154.86,154.82,22.6062]
[1727694936276,6.4574,154.86,154.83,4.80571403]
[1727694936496,6.4574,154.86,154.82,16.1473]
[1727694936798,6.4574,154.86,154.83,4.80564538]
[1727694936975,6.4579,154.85,154.79,31.9349]
[1727694937174,6.4579,154.85,154.8,24.80571554]
[1727694937488,6.4579,154.85,154.81,11.26511554]
[1727694937692,6.4579,154.85,154.82,4.80571554]
[1727694937886,8.07289481,154.84,154.8,26.4599]
[1727694938195,8.07289481,154.84,154.81,4.80393982]
[1727694938376,8.07289481,154.84,154.8,26.4599]
[1727694938567,8.07289481,154.84,154.81,4.80206495]